[Event "WYCC 2018 G14"]
[Site "Halkidiki"]
[Date "2018.10.29"]
[Round "10"]
[White "Yan, Ashley Mei"]
[Black "Guillo Longares, Cecilia"]
[Result "0-1"]
[ECO "B22"]
[WhiteElo "1565"]
[BlackElo "1998"]
[Annotator "NA"]
[PlyCount "104"]
[EventDate "2018.10.20"]
[EventType "swiss"]
[EventCountry "GRE"]
[SourceTitle "playchess.com"]
[Source "ChessBase"]
[SourceQuality "1"]
[TimeControl "40/5400+30:1800+30"]

1. e4 {[%emt 0:00:00]} c5 {[%emt 0:00:00]} 2. c3 {[%emt 0:00:00]} Nf6 {[%emt 0:00:00]} 3. e5 {[%emt 0:00:00]} Nd5 {[%emt 0:00:00]} 4. d4 {[%emt 0:00:00]} cxd4 {[%emt 0:00:00]} 5. Nf3 {[%emt 0:00:00]} e6 {[%emt 0:00:00]} 6. cxd4 {[%emt 0:00:02]} d6 {[%emt 0:00:00]} 7. Bc4 {[%emt 0:06:03]} Nc6 {[%emt 0:00:25]} 8. O-O {[%emt 0:00:23]} Be7 {[%emt 0:00:25]} 9. Qe2 {[%emt 0:00:47]} O-O {[%emt 0:00:21]} 10. Nc3 {[%emt 0:01:12]} Nxc3 {[%emt 0:02:03]} 11. bxc3 {[%emt 0:00:10]} dxe5 {[%emt 0:03:38]} 12. dxe5 {[%emt 0:00:34]} Qc7 {[%emt 0:01:02]} 13. Qe4 {[%emt 0:03:37]} Rd8 {[%emt 0:02:03]} 14. Bd3 {[%emt 0:11:25]} g6 {[%emt 0:04:17]} 15. Re1 {[%emt 0:11:55]} b6 {[%emt 0:08:29]} 16. Bf4 $15 {[%emt 0:12:12]} Bb7 {[%emt 0:00:40]} 17. Qe2 {[%emt 0:02:10]} Na5 {[%emt 0:04:12]} 18. Rac1 {[%emt 0:06:10]} Ba3 {[%emt 0:02:35]} 19. Rc2 {[%emt 0:03:11]} Bc6 {[%emt 0:04:09]} 20. Nd4 {[%emt 0:09:09]} Ba4 {[%emt 0:07:27]} 21. Nb5 {[%emt 0:09:33]} Qd7 {[%emt 0:01:37]} 22. Rd2 {[%emt 0:06:08]} Bxb5 {[%emt 0:00:52]} 23. Bxb5 {[%emt 0:00:20]} Qc7 {[%emt 0:00:06]} 24. Red1 {[%emt 0:03:08]} Rxd2 {[%emt 0:03:08]} 25. Qxd2 {[%emt 0:00:26]} Bf8 {[%emt 0:03:39]} 26. Qd7 {[%emt 0:04:48]} Qxc3 {[%emt 0:02:41]} 27. Rc1 {[%emt 0:00:37]} Qb4 {[%emt 0:02:39]} 28. Bg5 {[%emt 0:01:54]} Bc5 {[%emt 0:01:42]} 29. Rd1 {[%emt 0:03:42]} Qe4 {[%emt 0:14:46]} 30. Bh6 {[%emt 0:01:05]} Bxf2+ {[%emt 0:03:42]} 31. Kh1 {[%emt 0:01:31]} Qh4 {[%emt 0:01:27]} 32. Rf1 {[%emt 0:01:43]} Qxh6 {[%emt 0:04:45]} 33. Rxf2 {[%emt 0:00:08]} Qf8 {[%emt 0:01:31]} 34. h3 {[%emt 0:01:37]} a6 {[%emt 0:01:46]} 35. Be2 {[%emt 0:00:27]} Qg7 {[%emt 0:05:27]} 36. Qc7 {[%emt 0:01:09]} f5 37. Qxg7+ Kxg7 {[%emt 0:00:35]} 38. Rf1 {[%emt 0:01:02]} b5 {[%emt 0:00:20]} 39. Rd1 {[%emt 0:00:21]} Ra7 {[%emt 0:01:06]} 40. Rd6 {[%emt 0:00:00]} Kf7 {[%emt 0:00:00]} 41. Kg1 {[%emt 0:08:27]} Ke7 {[%emt 0:01:29]} 42. Kf2 {[%emt 0:06:24]} Nb7 {[%emt 0:00:52]} 43. Rc6 {[%emt 0:07:23]} Nd8 {[%emt 0:00:34]} 44. Rc5 {[%emt 0:01:29]} Kd7 {[%emt 0:00:50]} 45. Ke3 {[%emt 0:04:19]} Rc7 {[%emt 0:04:05]} 46. Kd4 Nc6+ {[%emt 0:01:13]} 47. Ke3 {[%emt 0:02:09]} Nb4 {[%emt 0:00:24]} 48. Rxc7+ {[%emt 0:00:38]} Kxc7 49. Kd4 Nxa2 {[%emt 0:02:24]} 50. Kc5 {[%emt 0:02:04]} Nc3 {[%emt 0:01:16]} 51. Bf3 {[%emt 0:00:45]} a5 {[%emt 0:01:45]} 52. Bc6 {[%emt 0:01:00]} b4 {[%emt 0:00:48]} 0-1

[Event "WYCC 2018 G14"]
[Site "Halkidiki"]
[Date "2018.10.29"]
[Round "10"]
[White "Burdot, Clara"]
[Black "Zaritovskaja, Margarita"]
[Result "0-1"]
[ECO "B22"]
[WhiteElo "1472"]
[BlackElo "1731"]
[Annotator "NA"]
[PlyCount "74"]
[EventDate "2018.10.20"]
[EventType "swiss"]
[EventCountry "GRE"]
[SourceTitle "playchess.com"]
[Source "ChessBase"]
[SourceQuality "1"]
[TimeControl "40/5400+30:1800+30"]

1. e4 {[%emt 0:00:00]} c5 {[%emt 0:00:00]} 2. c3 {[%emt 0:00:00]} d5 {[%emt 0:00:00]} 3. exd5 {[%emt 0:00:00]} Qxd5 {[%emt 0:00:00]} 4. d4 {[%emt 0:00:00]} Nc6 {[%emt 0:00:00]} 5. Nf3 {[%emt 0:00:04]} Bf5 {[%emt 0:00:00]} 6. Be3 {[%emt 0:04:30]} Nf6 {[%emt 0:00:34]} 7. Be2 {[%emt 0:01:25]} g6 {[%emt 0:05:54]} 8. dxc5 {[%emt 0:05:08]} Qxd1+ {[%emt 0:05:51]} 9. Bxd1 {[%emt 0:00:23]} Nd5 {[%emt 0:08:01]} 10. Bd4 {[%emt 0:05:49]} f6 {[%emt 0:04:59]} 11. Bb3 {[%emt 0:04:28]} Nf4 {[%emt 0:10:21]} 12. O-O {[%emt 0:08:29]} O-O-O {[%emt 0:07:52]} 13. Re1 {[%emt 0:06:24]} e5 {[%emt 0:07:19]} 14. Be3 {[%emt 0:03:03]} Nd3 {[%emt 0:01:22]} 15. Re2 {[%emt 0:01:56]} Bxc5 {[%emt 0:04:13]} 16. Bh6 {[%emt 0:07:59]} e4 {[%emt 0:18:01]} 17. Ne1 {[%emt 0:05:01]} Bg4 {[%emt 0:07:44]} 18. Nxd3 {[%emt 0:05:05]} exd3 {[%emt 0:01:15]} 19. Re4 {[%emt 0:02:20]} Rhe8 {[%emt 0:02:52]} 20. Nd2 {[%emt 0:02:42]} Bf5 {[%emt 0:00:45]} 21. Ree1 {[%emt 0:02:41]} g5 {[%emt 0:05:33]} 22. Bg7 {[%emt 0:02:14]} Re2 {[%emt 0:00:48]} 23. Rxe2 {[%emt 0:02:23]} dxe2 {[%emt 0:00:04]} 24. Nf3 {[%emt 0:00:57]} Na5 {[%emt 0:02:13]} 25. Re1 {[%emt 0:02:23]} Nxb3 {[%emt 0:00:19]} 26. axb3 {[%emt 0:00:07]} Rd1 {[%emt 0:00:32]} 27. g3 {[%emt 0:04:11]} g4 {[%emt 0:00:47]} 28. Kg2 {[%emt 0:00:57]} gxf3+ {[%emt 0:00:05]} 29. Kxf3 {[%emt 0:00:09]} Rxe1 {[%emt 0:00:11]} 30. Bxf6 {[%emt 0:00:20]} Bd3 {[%emt 0:00:18]} 31. Bg5 {[%emt 0:00:27]} Rd1 {[%emt 0:00:20]} 32. Be3 {[%emt 0:01:00]} Bxe3 {[%emt 0:00:23]} 33. fxe3 {[%emt 0:00:12]} e1=Q {[%emt 0:00:08]} 34. Kg4 {[%emt 0:00:17]} Qxe3 {[%emt 0:00:09]} 35. Kh3 {[%emt 0:00:19]} Qg5 {[%emt 0:00:59]} 36. g4 {[%emt 0:00:21]} Rg1 {[%emt 0:00:34]} 37. c4 {[%emt 0:00:09]} Qxg4# {[%emt 0:00:05]} 0-1

[Event "WYCC 2018 G14"]
[Site "Halkidiki"]
[Date "2018.10.30"]
[Round "11"]
[White "Nurgali, Nazerke"]
[Black "Arauco Celestino, Arianna Sofia"]
[Result "1-0"]
[ECO "E04"]
[WhiteElo "2263"]
[BlackElo "1610"]
[Annotator "NA"]
[PlyCount "41"]
[EventDate "2018.10.20"]
[EventType "swiss"]
[EventCountry "GRE"]
[SourceTitle "playchess.com"]
[Source "ChessBase"]
[SourceQuality "1"]
[TimeControl "40/5400+30:1800+30"]

1. d4 {[%emt 0:00:00]} Nf6 {[%emt 0:02:38]} 2. c4 {[%emt 0:00:00]} e6 3. g3 {[%emt 0:00:06]} d5 {[%emt 0:01:17]} 4. Nf3 {[%emt 0:00:21]} dxc4 {[%emt 0:00:10]} 5. Bg2 {[%emt 0:00:15]} Bb4+ {[%emt 0:00:09]} 6. Bd2 {[%emt 0:01:25]} a5 {[%emt 0:00:10]} 7. O-O {[%emt 0:01:29]} O-O {[%emt 0:00:41] E04: Open Catalan: 5 Nf3} 8. Qc2 {[%emt 0:05:52]} (8. Bg5 h6 9. Bxf6 Qxf6 10. a3 Bd6 11. Nc3 Nc6 12. Rc1 e5 13. d5 Nd4 14. Nxd4 exd4 15. Ne4 {0-1 (66) Ding,L (2777)-Wang,H (2709) Huaian 2017}) 8... Bxd2 {[%emt 0:00:29]} 9. Nbxd2 {[%emt 0:00:10]} b5 {[%emt 0:00:20]} 10. a4 {[%emt 0:01:17]} c6 {[%emt 0:00:23]} 11. e4 {[%emt 0:00:53]} Na6 {[%emt 0:09:46] LiveBook: 8 Games} 12. Qc3 {[%emt 0:02:27]} Nb4 {[%emt 0:04:06]} 13. Ne5 {[%emt 0:03:57]} Bb7 $146 {[%emt 0:01:08]} ({Better is Predecessor:} 13... Nd7 $15 14. Nxd7 Qxd7 {0-1 (36) Dimic,P (2356)-Livaic,L (2468) Skopje 2018}) 14. b3 {[%emt 0:02:14]} cxb3 {[%emt 0:08:44]} 15. Nxb3 {[%emt 0:00:07]} Qb6 {[%emt 0:02:43]} 16. Nc5 {[%emt 0:03:02]} Rfd8 {[%emt 0:01:06]} 17. Rfd1 {[%emt 0:01:22]} Rd6 {[%emt 0:07:07]} 18. Qb2 {[%emt 0:03:38]} Rad8 {[%emt 0:17:01]} 19. axb5 {[%emt 0:07:13]} Qxb5 {[%emt 0:08:24]} 20. Rac1 $18 {[%emt 0:25:37]} Na6 {[%emt 0:02:52]} 21. Qxb5 {[%emt 0:00:13]} 1-0

[Event "WYCC 2018 G14"]
[Site "Halkidiki"]
[Date "2018.10.30"]
[Round "11"]
[White "Caglar, Sila"]
[Black "Randrianarimanana, Alicia"]
[Result "1-0"]
[ECO "B29"]
[WhiteElo "2184"]
[BlackElo "1947"]
[Annotator "NA"]
[PlyCount "71"]
[EventDate "2018.10.20"]
[EventType "swiss"]
[EventCountry "GRE"]
[SourceTitle "playchess.com"]
[Source "ChessBase"]
[SourceQuality "1"]
[TimeControl "40/5400+30:1800+30"]

1. e4 {[%emt 0:00:00]} c5 {[%emt 0:00:00]} 2. Nf3 {[%emt 0:00:00]} Nf6 {[%emt 0:00:00]} 3. Nc3 {[%emt 0:00:07]} Nc6 {[%emt 0:00:00]} 4. d4 {[%emt 0:00:07]} d5 {[%emt 0:00:02]} 5. e5 {[%emt 0:10:04] B29: Sicilian: 2 Nf3 Nf6 (Nimzowitsch Variation)} (5. exd5 Nxd5 6. dxc5 Nxc3 7. Qxd8+ Nxd8 8. bxc3 f6 9. Be3 e5 10. Nd2 Bd7 11. O-O-O Rc8 12. Ne4 Ne6 13. Nd6+ Bxd6 14. cxd6 b6 15. Ba6 Rc6 16. c4 Rxc4 {1-0 (53) Kravtsiv,M (2654)-Bakunts,R (2427) Ahmedabad 2018}) 5... Ne4 {[%emt 0:00:45]} 6. dxc5 {[%emt 0:00:51]} Nxc3 {[%emt 0:03:31]} 7. bxc3 {[%emt 0:00:06]} Bg4 {[%emt 0:04:16]} 8. Bf4 $146 {[%emt 0:02:49]} ({Predecessor:} 8. Be2 e6 9. Be3 Bxf3 10. Bxf3 Nxe5 11. O-O Nxf3+ 12. Qxf3 Qc7 {½-½ (31) Preiser,H-Cvicela,A (2170) Znojmo 2003}) 8... Qa5 {[%emt 0:22:56]} 9. Qd3 {[%emt 0:03:56]} e6 {[%emt 0:13:38]} 10. Rb1 {[%emt 0:03:32]} Qc7 {[%emt 0:31:39]} 11. Nd4 {[%emt 0:06:33]} a6 {[%emt 0:00:05]} 12. Qg3 {[%emt 0:03:44]} Bh5 {[%emt 0:00:20]} 13. Nb3 {[%emt 0:00:52]} Bg6 {[%emt 0:00:38]} 14. Bd3 {[%emt 0:00:08]} Ne7 {[%emt 0:00:14]} 15. h4 {[%emt 0:01:54]} Nf5 {[%emt 0:01:05]} 16. Qf3 {[%emt 0:01:24]} h5 {[%emt 0:00:35]} 17. Nd4 {[%emt 0:01:41]} Ne7 {[%emt 0:05:16]} 18. O-O {[%emt 0:04:44]} Bxd3 {[%emt 0:08:28]} 19. cxd3 {[%emt 0:00:31]} Ng6 {[%emt 0:00:06]} 20. Qg3 {[%emt 0:00:25]} Nxf4 {[%emt 0:00:42]} 21. Qxf4 {[%emt 0:00:11]} Bxc5 {[%emt 0:00:11]} 22. Nf3 {[%emt 0:00:59]} b5 {[%emt 0:04:06]} 23. a4 {[%emt 0:02:24]} bxa4 {[%emt 0:00:22]} 24. Qxa4+ {[%emt 0:00:17]} Kf8 {[%emt 0:00:53]} 25. Rb3 {[%emt 0:00:37]} g6 {[%emt 0:00:52]} 26. Rfb1 {[%emt 0:00:11]} Kg7 {[%emt 0:00:14]} 27. Rb7 {[%emt 0:00:06]} Qc8 {[%emt 0:00:13]} 28. d4 {[%emt 0:00:46]} Bxd4 {[%emt 0:01:55]} 29. Qxd4 {[%emt 0:00:22]} Rf8 {[%emt 0:00:17]} 30. Ng5 {[%emt 0:00:06]} Kg8 {[%emt 0:00:33]} 31. Qf4 {[%emt 0:00:23]} Qe8 {[%emt 0:00:43]} 32. Qf6 {[%emt 0:00:12]} Qd8 {[%emt 0:00:13]} 33. Re7 {[%emt 0:00:12]} Qxe7 {[%emt 0:00:51]} 34. Qxe7 {[%emt 0:00:07]} a5 {[%emt 0:00:25]} 35. Rb7 {[%emt 0:00:23]} a4 {[%emt 0:00:46]} 36. Nxf7 {[%emt 0:00:06]} 1-0

[Event "WYCC 2018 G14"]
[Site "Halkidiki"]
[Date "2018.10.30"]
[Round "11"]
[White "Divya Deshmukh"]
[Black "Ning, Kaiyu"]
[Result "1-0"]
[ECO "C11"]
[WhiteElo "2180"]
[BlackElo "2217"]
[Annotator "NA"]
[PlyCount "75"]
[EventDate "2018.10.20"]
[EventType "swiss"]
[EventCountry "GRE"]
[SourceTitle "playchess.com"]
[Source "ChessBase"]
[SourceQuality "1"]
[TimeControl "40/5400+30:1800+30"]

1. e4 {[%emt 0:00:00]} e6 {[%emt 0:00:00]} 2. Nf3 {[%emt 0:00:00]} d5 {[%emt 0:00:00]} 3. Nc3 {[%emt 0:00:00]} Nf6 {[%emt 0:00:00]} 4. e5 {[%emt 0:00:00]} Nfd7 {[%emt 0:00:00]} 5. d4 {[%emt 0:00:00]} c5 {[%emt 0:00:00]} 6. dxc5 {[%emt 0:00:00]} Nc6 {[%emt 0:00:02]} 7. Bf4 {[%emt 0:00:00]} Nxc5 {[%emt 0:00:33]} 8. a3 {[%emt 0:02:47]} Be7 {[%emt 0:01:22] C11: French: Classical System: 4 e5 and 4 Bg5 dxe4} 9. b4 {[%emt 0:04:10]} Nd7 {[%emt 0:09:33]} 10. Qd2 $146 {[%emt 0:00:57]} ({Predecessor:} 10. Nb5 O-O 11. c4 a5 12. bxa5 Qxa5+ 13. Bd2 Qa4 14. cxd5 exd5 15. Nc7 Qe4+ 16. Be3 Rxa3 17. Rxa3 Bxa3 {0-1 (65) Aronian,L (2562)-Lputian,S (2608) Yerevan 2001}) 10... f6 {[%emt 0:16:21]} 11. Bb5 {[%emt 0:04:41]} O-O {[%emt 0:08:51]} 12. Bxc6 {[%emt 0:07:06]} bxc6 {[%emt 0:00:18]} 13. O-O {[%emt 0:05:11]} f5 {[%emt 0:03:41]} 14. Nd4 {[%emt 0:05:04]} Nb8 {[%emt 0:00:38]} 15. Be3 {[%emt 0:02:49]} a5 {[%emt 0:08:03]} 16. Nce2 {[%emt 0:02:32]} a4 {[%emt 0:08:21]} 17. c4 {[%emt 0:06:34]} dxc4 {[%emt 0:07:30]} 18. Qc3 {[%emt 0:01:50]} g5 {[%emt 0:08:23]} 19. f4 {[%emt 0:03:40]} g4 {[%emt 0:03:19]} (19... c5 $16 {was worth a try.}) 20. Rfd1 {[%emt 0:01:35]} Qe8 {[%emt 0:00:21]} 21. Qxc4 {[%emt 0:00:08]} Qf7 {[%emt 0:00:25]} 22. Nxc6 {[%emt 0:01:25]} Nxc6 {[%emt 0:02:46]} 23. Qxc6 {[%emt 0:00:18]} Ra6 {[%emt 0:02:31]} 24. Qc7 {[%emt 0:00:19]} Ra8 {[%emt 0:04:36]} 25. b5 {[%emt 0:06:22]} Bd8 $18 {[%emt 0:01:11]} 26. Qxf7+ {[%emt 0:06:25]} Kxf7 {[%emt 0:00:04]} 27. Rac1 {[%emt 0:04:49]} Rb8 {[%emt 0:03:32]} 28. Bc5 {[%emt 0:06:23]} Re8 {[%emt 0:00:04]} 29. Nd4 {[%emt 0:00:09]} Ba5 {[%emt 0:03:30]} 30. Rc4 {[%emt 0:00:47]} Rb7 {[%emt 0:01:42]} 31. Rxa4 {[%emt 0:01:35]} Bc3 {[%emt 0:00:08]} 32. b6 {[%emt 0:01:26]} Bd7 {[%emt 0:00:24]} 33. Rc4 {[%emt 0:00:33]} Bxd4+ {[%emt 0:00:21]} 34. Rcxd4 {[%emt 0:00:04]} Rd8 {[%emt 0:01:34]} 35. a4 {[%emt 0:00:26]} Ke8 {[%emt 0:00:12]} 36. Bd6 {[%emt 0:01:05]} Bc6 {[%emt 0:02:35]} 37. Bc7 {[%emt 0:00:32]} Rd5 {[%emt 0:01:14]} 38. Rxd5 {[%emt 0:00:11]} 1-0

[Event "WYCC 2018 G14"]
[Site "Halkidiki"]
[Date "2018.10.30"]
[Round "11"]
[White "Galvan Cipriani, Viviana"]
[Black "Somton, Anita"]
[Result "1-0"]
[ECO "A13"]
[WhiteElo "2109"]
[BlackElo "1787"]
[Annotator "NA"]
[PlyCount "57"]
[EventDate "2018.10.20"]
[EventType "swiss"]
[EventCountry "GRE"]
[SourceTitle "playchess.com"]
[Source "ChessBase"]
[SourceQuality "1"]
[TimeControl "40/5400+30:1800+30"]

1. c4 {[%emt 0:00:00]} e6 {[%emt 0:00:00]} 2. Nf3 {[%emt 0:00:29]} d5 {[%emt 0:00:20]} 3. b3 {[%emt 0:00:39]} Nf6 {[%emt 0:00:45]} 4. g3 {[%emt 0:01:18]} Be7 {[%emt 0:00:31]} 5. Bg2 {[%emt 0:00:21]} O-O {[%emt 0:01:22] LiveBook: 1017 Games} 6. O-O {[%emt 0:01:59]} c6 {[%emt 0:00:58]} 7. Bb2 {[%emt 0:00:38]} Nbd7 {[%emt 0:00:42]} 8. d3 {[%emt 0:00:39]} b6 {[%emt 0:00:56]} 9. Nbd2 {[%emt 0:01:57]} Bb7 {[%emt 0:00:53]} 10. Qc2 {[%emt 0:02:08]} c5 {[%emt 0:06:05] A14: English Opening: 1...e6 with b3 by White} (10... a5 11. a3 Rc8 12. Rac1 c5 13. e3 Qc7 14. Qb1 Qb8 15. cxd5 Bxd5 16. e4 Bc6 17. Nc4 Rfd8 18. Rfe1 {½-½ (66) Leon Hoyos,M (2603)-Yang,D (2485) Saint Louis 2012}) 11. e3 {[%emt 0:02:49]} a5 $146 {[%emt 0:02:57]} ({Predecessor:} 11... Qc7 12. Rac1 Rac8 13. Rfe1 Rfd8 14. cxd5 Nxd5 15. a3 Bf6 16. e4 Bxb2 17. Qxb2 Ne7 18. d4 {1-0 (38) Norberg,E (2289)-Karlsson,T (2293) Sweden 2009}) 12. a3 {[%emt 0:07:09]} Bc6 {[%emt 0:06:04]} 13. Bc3 {[%emt 0:01:19]} b5 {[%emt 0:02:07]} 14. cxb5 {[%emt 0:06:51]} Bxb5 {[%emt 0:00:25]} 15. Rab1 {[%emt 0:03:14]} (15. Rfb1 $11) 15... Qc8 {[%emt 0:06:56]} 16. a4 {[%emt 0:06:41]} Bc6 {[%emt 0:03:07]} 17. d4 {[%emt 0:02:05]} Bb7 {[%emt 0:03:29]} 18. Rfc1 {[%emt 0:04:32]} cxd4 {[%emt 0:04:32]} 19. Nxd4 $11 {[%emt 0:00:32]} Ba3 {[%emt 0:01:51]} 20. Rd1 {[%emt 0:01:21]} Be7 {[%emt 0:06:00]} 21. Qb2 {[%emt 0:08:35]} Nc5 {[%emt 0:03:59]} 22. Nb5 {[%emt 0:06:33]} Nd3 {[%emt 0:09:01]} 23. Qa1 {[%emt 0:02:47]} Rd8 {[%emt 0:09:33]} 24. Nf3 {[%emt 0:06:43]} Nc5 {[%emt 0:05:16]} 25. Qb2 {[%emt 0:01:26]} Ne8 {[%emt 0:03:16]} 26. Rbc1 {[%emt 0:02:57]} Bf6 {[%emt 0:01:12]} 27. Bd4 {[%emt 0:05:53]} Nd6 {[%emt 0:07:28]} 28. Nxd6 {[%emt 0:04:20]} Rxd6 {[%emt 0:00:27]} 29. Qa3 {[%emt 0:01:47]} 1-0

[Event "WYCC 2018 G14"]
[Site "Halkidiki"]
[Date "2018.10.30"]
[Round "11"]
[White "Krasteva, Beloslava"]
[Black "Song, Yuxin"]
[Result "1/2-1/2"]
[ECO "E48"]
[WhiteElo "2089"]
[BlackElo "2178"]
[Annotator "NA"]
[PlyCount "91"]
[EventDate "2018.10.20"]
[EventType "swiss"]
[EventCountry "GRE"]
[SourceTitle "playchess.com"]
[Source "ChessBase"]
[SourceQuality "1"]
[TimeControl "40/5400+30:1800+30"]

1. d4 Nf6 2. c4 e6 3. Nc3 Bb4 4. e3 O-O 5. Bd3 d5 6. cxd5 exd5 7. Nge2 Re8 8. Bd2 {E48: Nimzo-Indian: Rubinstein: 5 Bd3 d5 including 6 Ne2, but excluding 6 a3} Nbd7 9. Rc1 a6 10. O-O Bd6 11. Nf4 c6 12. Qc2 $146 ({Predecessor:} 12. f3 Nf8 13. Kh1 Ng6 14. Nce2 Qb6 15. b3 Bd7 {½-½ (62) Fressinet,L (2645)-Gharamian,T (2614) Nimes 2018}) 12... Nf8 13. f3 Bxf4 14. exf4 Qb6 15. Ne2 Bf5 16. Bxf5 Rxe2 17. Qd3 Rae8 18. b3 N6d7 19. Rfe1 Rxe1+ 20. Rxe1 Rxe1+ 21. Bxe1 g6 22. Bxd7 Nxd7 23. f5 Qd8 24. fxg6 hxg6 25. Qe3 Qf6 26. g4 Qe6 27. Bf2 b6 28. Qd3 a5 29. Kg2 Kg7 30. a4 Qe7 31. Qe3 Qxe3 32. Bxe3 b5 33. Bd2 bxa4 34. bxa4 Nb6 35. Bxa5 Nxa4 36. Kf2 c5 37. dxc5 Nxc5 38. Bc3+ Kh6 39. Bd2+ Kg7 40. Ke3 Ne6 41. Bc3+ Kh6 42. Be5 g5 43. Bg3 Kg6 $11 44. h4 gxh4 45. Bxh4 f5 46. Be7 1/2-1/2

[Event "WYCC 2018 G14"]
[Site "Halkidiki"]
[Date "2018.10.30"]
[Round "11"]
[White "Dylag, Emilia"]
[Black "Behzad Nazif, Parva"]
[Result "1/2-1/2"]
[ECO "A45"]
[WhiteElo "2059"]
[BlackElo "1859"]
[Annotator "NA"]
[PlyCount "95"]
[EventDate "2018.10.20"]
[EventType "swiss"]
[EventCountry "GRE"]
[SourceTitle "playchess.com"]
[Source "ChessBase"]
[SourceQuality "1"]
[TimeControl "40/5400+30:1800+30"]

1. d4 Nf6 2. Nc3 d5 3. Bf4 g6 {D00: 1 d4 d5: Unusual lines} 4. e3 Bg7 5. h4 h5 6. Nf3 Bg4 (6... c6 7. Ne5 Nbd7 8. Be2 Ne4 9. Nxe4 dxe4 10. Nxd7 Bxd7 11. Qd2 {1-0 (45) Matlakov,M (2683)-Rakhmanov,A (2634) Sochi 2018}) 7. Be2 Bxf3 8. Bxf3 c6 9. O-O Nbd7 10. Re1 $146 ({Predecessor:} 10. e4 dxe4 11. Nxe4 Nxe4 12. Bxe4 {0-1 (41) Malakhovets,S (1923)-Itkin,D (2239) Quebec 2018}) 10... O-O 11. Rb1 Nh7 12. e4 dxe4 13. Nxe4 e5 14. dxe5 Qxh4 15. Bg3 Qd8 16. Nd6 h4 17. Bh2 Qg5 18. Nxf7 Rxf7 19. e6 Rxf3 20. Qxf3 Ndf6 21. Rbd1 Re8 22. Qb3 b6 23. e7+ Nd5 24. Qc4 Rxe7 25. Rxe7 Qxe7 26. Qxc6 Nhf6 27. c4 Qe2 28. Rf1 Nb4 29. Qc8+ Kh7 30. Qh3 Qxc4 31. g3 Nxa2 32. Qxh4+ Qxh4 33. gxh4 Nd5 34. Rd1 Nab4 35. b3 Bf6 36. Bd6 Nc3 37. Re1 Nc6 38. Kg2 Nd4 39. Ra1 a5 40. b4 Nf5 41. bxa5 Nb5 42. axb6 $11 Nfxd6 43. Ra7+ Kh6 44. b7 Nxb7 45. Rxb7 Nd4 46. Kh3 Nf5 47. Kg4 Bxh4 48. Rb5 1/2-1/2

[Event "WYCC 2018 G14"]
[Site "Halkidiki"]
[Date "2018.10.30"]
[Round "11"]
[White "Mironenko, Galina"]
[Black "Jaufarally, Nadia"]
[Result "1-0"]
[ECO "E63"]
[WhiteElo "2053"]
[BlackElo "1810"]
[Annotator "NA"]
[PlyCount "77"]
[EventDate "2018.10.20"]
[EventType "swiss"]
[EventCountry "GRE"]
[SourceTitle "playchess.com"]
[Source "ChessBase"]
[SourceQuality "1"]
[TimeControl "40/5400+30:1800+30"]

1. Nf3 {[%emt 0:00:00]} Nf6 {[%emt 0:00:00]} 2. g3 {[%emt 0:00:00]} g6 {[%emt 0:00:00]} 3. Bg2 {[%emt 0:00:00]} Bg7 {[%emt 0:00:00]} 4. O-O {[%emt 0:00:00]} O-O {[%emt 0:00:26]} 5. d4 {[%emt 0:00:00]} d6 {[%emt 0:00:08]} 6. c4 {[%emt 0:00:00]} Nc6 {[%emt 0:00:10]} 7. Nc3 {[%emt 0:00:02]} a6 {[%emt 0:00:11]} 8. e3 {[%emt 0:00:05]} Rb8 {[%emt 0:01:13]} 9. Qe2 {[%emt 0:00:06] E63: King's Indian: Fianchetto: Panno Variation with 7...a6} Bd7 {[%emt 0:09:38]} (9... b5 10. Rd1 e6 11. b3 bxc4 12. Qxc4 Nb4 13. a3 Nbd5 14. Ne2 Bd7 15. Qc2 Bb5 16. Re1 c5 {½-½ (48) Tomashevsky,E (2702)-Nakamura,H (2780) Palma de Mallorca 2017}) 10. Rd1 {[%emt 0:04:59]} Na7 {[%emt 0:03:21]} 11. e4 {[%emt 0:05:51]} b5 $146 {[%emt 0:02:30]} ({Predecessor:} 11... Qc8 12. e5 Nh5 13. Be3 Nc6 14. exd6 exd6 15. Qd2 Bg4 16. Re1 Nf6 {1-0 (39) Sturua,Z (2594)-Stauch,E (2257) Bern 2000}) 12. e5 {[%emt 0:05:07]} Ne8 {[%emt 0:05:29]} 13. Bg5 {[%emt 0:04:18]} f6 {[%emt 0:02:38]} 14. Be3 {[%emt 0:09:31]} fxe5 {[%emt 0:08:06]} 15. dxe5 {[%emt 0:02:00]} Nc6 {[%emt 0:04:59]} 16. Bf4 {[%emt 0:14:33]} Bg4 {[%emt 0:04:16]} 17. exd6 {[%emt 0:09:43]} cxd6 {[%emt 0:05:33]} 18. Qe4 {[%emt 0:05:07]} Bxf3 {[%emt 0:04:44]} 19. Qxf3 {[%emt 0:02:57]} Ne5 {[%emt 0:08:05]} 20. Qd5+ {[%emt 0:02:19]} Kh8 {[%emt 0:00:14]} 21. c5 {[%emt 0:06:15]} Nc7 {[%emt 0:14:38]} 22. Qe4 {[%emt 0:03:01]} Ne6 {[%emt 0:03:18]} 23. Be3 {[%emt 0:01:53]} b4 {[%emt 0:09:00]} 24. Ne2 {[%emt 0:03:06]} Qc7 {[%emt 0:00:55]} 25. cxd6 {[%emt 0:01:58]} exd6 {[%emt 0:00:09]} 26. Rac1 {[%emt 0:02:23]} Nc5 {[%emt 0:00:52]} 27. Qd5 {[%emt 0:00:50]} Rbd8 {[%emt 0:02:34]} 28. Nf4 {[%emt 0:02:40]} Qf7 {[%emt 0:03:41]} 29. Bxc5 $18 {[%emt 0:04:10]} dxc5 {[%emt 0:00:32]} 30. Qxd8 {[%emt 0:01:59]} Rxd8 {[%emt 0:00:21]} 31. Rxd8+ {[%emt 0:00:05]} Bf8 {[%emt 0:00:10]} 32. Rxc5 {[%emt 0:01:02]} g5 {[%emt 0:02:48]} 33. Rxe5 {[%emt 0:02:46]} gxf4 {[%emt 0:00:43]} 34. Ree8 {[%emt 0:01:25]} Qxa2 {[%emt 0:00:34]} 35. Rxf8+ {[%emt 0:01:46]} Kg7 {[%emt 0:00:05]} 36. Rxf4 {[%emt 0:02:10]} Qb1+ {[%emt 0:02:53]} 37. Bf1 {[%emt 0:00:08]} a5 {[%emt 0:01:30]} 38. Rd7+ {[%emt 0:00:22]} Kg6 {[%emt 0:01:51]} 39. Kg2 {[%emt 0:00:42] Kf6} 1-0